fUSD/lending_fUSD_20251105
["ID","MTS","AMOUNT","RATE_DAILY","PERIOD"]
[393183707,1762300865542,500.0,0.00027999,120]
[393183708,1762300865789,500.0,0.00027999,120]
[393183718,1762300964935,217.71718604,0.00018257,2]
[393183719,1762300965216,216.8529536,0.00018408,2]
[393183720,1762300965244,0.86423244,0.00018408,2]
[393183721,1762300965685,366.62341341,0.00018182,2]
[393183740,1762301313255,-166.66,0.00018622,2]
[393183741,1762301313292,-155.38,0.00018879,2]
[393183742,1762301313326,-2751.0,0.00018898,2]
[393183743,1762301313357,-812.90905174,0.00018907,2]
[393183744,1762301326446,3000.0,0.00038264,120]
[393183760,1762301432007,-200.0,0.00019009,2]
[393183761,1762301432017,-250.0,0.00019012,2]
[393183762,1762301432026,-166.66,0.00019014,2]
[393183763,1762301432036,-224.28,0.00019018,2]
[393183764,1762301432045,-250.0,0.00019161,2]
[393183765,1762301432055,-812.90905174,0.00019296,2]
[393183766,1762301432064,-217.71718605,0.00019394,2]
[393183767,1762301432073,-166.66,0.00019407,2]
[393183768,1762301432084,-1.29059085,0.00019489,2]
[393183769,1762301432096,-254.0,0.00019489,2]
[393183770,1762301432110,-557.61846089,0.00019489,2]
[393183771,1762301432120,-217.71718605,0.00019661,2]
[393183772,1762301432129,-166.66,0.00019799,2]
[393183773,1762301432139,-812.90905174,0.00019826,2]
[393183774,1762301432148,-164.51,0.00019838,2]
[393183775,1762301432158,-1950.96731623,0.00019839,2]
[393183776,1762301432167,-1200.0,0.00019916,2]
[393183777,1762301432177,-1200.0,0.00019916,2]
[393183778,1762301432186,-1950.96731624,0.00019917,2]
[393183779,1762301432196,-300.0,0.00019938,2]
[393183780,1762301432205,-200.12688195,0.00019939,3]
[393183781,1762301432214,-7147.06076126,0.00019939,2]
[393183782,1762301432225,-217.71718605,0.00019993,2]
[393183783,1762301432410,-600.60200561,0.00020016,2]
[393183784,1762301432421,-7581.68696116,0.00020017,2]
[393183785,1762301432432,-748.69638418,0.00020017,2]
[393183786,1762301432444,-1699.61665466,0.00020017,2]
[393183787,1762301432453,-2824.5452604,0.00020017,2]
[393183788,1762301432463,-29568.1334252,0.00020017,2]
[393183789,1762301432472,-500.0,0.00020038,2]
[393183790,1762301432481,-500.0,0.00020038,2]
[393183791,1762301432491,-500.0,0.00020038,2]
[393183792,1762301432501,-50479.7501555,0.00020039,2]
[393183793,1762301432512,-719.19571675,0.00020039,2]
[393183795,1762301437789,-106758.18317574,0.00020039,2]
[393183796,1762301437799,-285.77358979,0.00020039,2]
[393183797,1762301437809,-1606.66201825,0.00020039,2]
[393183798,1762301437819,-5708.62483,0.00020039,2]
[393183799,1762301437829,-500.0,0.00020073,2]
[393183800,1762301437839,-417.11,0.00020187,2]
[393183801,1762301437849,-500.0,0.0002019,2]
[393183802,1762301437860,-500.0,0.0002019,2]
[393183803,1762301437870,-166.66,0.00020191,2]
[393183804,1762301437879,-2000.0,0.000203,2]
[393183805,1762301437889,-155.38,0.000203,2]
[393183806,1762301437898,-812.90905174,0.0002037,2]
[393183807,1762301437907,-4084.39,0.00020471,2]
[393183808,1762301437917,-217.71718605,0.00020476,2]
[393183809,1762301437926,-21306.32,0.00020548,2]
[393183810,1762301437935,-327.64,0.00020548,2]
[393183811,1762301437945,-166.66,0.00020583,2]
[393183812,1762301437954,-1000.0,0.00020621,2]
[393183813,1762301437963,-812.90905174,0.00020636,2]
[393183814,1762301437973,-217.71718606,0.00020651,2]
[393183815,1762301437982,-164.51,0.00020657,2]
[393183816,1762301437993,-1852.42,0.00020758,2]
[393183817,1762301438003,-500.0,0.00020849,2]
[393183818,1762301438012,-250.0,0.0002091,2]
[393183820,1762301438023,-663.80006133,0.0002092,2]
[393183821,1762301438032,-281.0,0.00020969,2]
[393183822,1762301438042,-500.0,0.0002098,2]
[393183823,1762301438052,-500.0,0.0002098,2]
[393183824,1762301438061,-500.33584785,0.0002098,2]
[393183825,1762301438074,-500.0,0.00020999,2]
[393183826,1762301438083,-500.0,0.00020999,2]
[393183827,1762301438093,-500.0,0.00020999,2]
[393183828,1762301438102,-500.0,0.00020999,2]
[393183829,1762301438111,-37118.6122387,0.00021,2]
[393183830,1762301438121,-1181.43161288,0.00021,2]
[393183831,1762301438131,-195.01197734,0.00021,2]
[393183832,1762301438141,-500.0,0.00021008,2]
[393183833,1762301438151,-500.0,0.00021008,2]
[393183834,1762301438161,-500.0,0.00021008,2]
[393183835,1762301438171,-812.90905175,0.00021015,2]
[393183836,1762301438181,-355.96077103,0.00021022,2]
[393183837,1762301438190,-518.83041434,0.00021035,2]
[393183838,1762301438200,-3794.15,0.00021108,2]
[393183839,1762301438210,-206.58008751,0.00021114,2]
[393183840,1762301438220,-1000.0,0.00021159,2]
[393183841,1762301438229,-500.0,0.00021168,2]
[393183842,1762301438239,-501.53442277,0.0002119,2]
[393183843,1762301438248,-243.53715851,0.0002119,2]
[393183844,1762301438261,-223.9,0.00021218,2]
[393183845,1762301438271,-6313.3,0.0002137,2]
[393183846,1762301438281,-9172.31614433,0.000214,2]
[393183847,1762301438291,-500.0,0.00021473,2]
[393183848,1762301438300,-172.16017549,0.00021473,2]
[393183849,1762301438311,-500.0,0.00021473,2]
[393183850,1762301438320,-500.0,0.00021473,2]
[393183851,1762301438331,-500.0,0.00021473,2]
[393183852,1762301438342,-500.0,0.00021473,2]
[393183853,1762301438352,-500.0,0.00021473,2]
[393183854,1762301438361,-500.0,0.00021473,2]
[393183855,1762301438371,-500.0,0.00021473,2]
[393183856,1762301438380,-542.89918106,0.00021473,2]
[393183857,1762301438389,-500.0,0.00021473,2]
[393183858,1762301438399,-500.0,0.00021473,2]
[393183859,1762301438409,-500.0,0.00021473,2]
[393183860,1762301438418,-200.0,0.00021473,2]
[393183861,1762301438428,-164.51,0.00021475,2]
[393183862,1762301438438,-57401.90144683,0.000215,2]
[393183863,1762301438449,-219.92237835,0.000215,2]
[393183864,1762301438461,-1000.0,0.00021556,2]
[393183865,1762301438472,-485.04266598,0.00021556,2]
[393183866,1762301438481,-825.51573275,0.00021556,2]
[393183867,1762301438492,-150.0,0.00021578,2]
[393183868,1762301438501,-156.13,0.00021644,2]
[393183869,1762301438511,-150.0,0.00021676,2]
[393183870,1762301438520,-778.0,0.00021688,2]
[393183871,1762301438531,-420.0,0.00021712,2]
[393183872,1762301438541,-163.27,0.00021782,2]
[393183873,1762301438550,-1680.0,0.00021792,2]
[393183874,1762301438560,-425.66393494,0.00021848,2]
[393183875,1762301438570,-5000.0,0.00021918,2]
[393183876,1762301438580,-7147.06076122,0.00021964,2]
[393183877,1762301438590,-8491.7816808,0.00021968,2]
[393183878,1762301438600,-4106.25636954,0.00022,2]
[393183879,1762301438611,-160.97,0.00022,2]
[393183880,1762301438621,-500.0,0.00022021,2]
[393183881,1762301438630,-1000.0,0.00022021,2]
[393183882,1762301438641,-1000.0,0.00022021,2]
[393183883,1762301438651,-714.84688281,0.00022021,2]
[393183884,1762301438662,-1000.0,0.00022021,2]
[393183885,1762301438673,-1000.0,0.00022021,2]
[393183886,1762301438684,-1000.0,0.00022021,2]
[393183887,1762301438694,-1000.0,0.00022021,2]
[393183888,1762301438705,-1000.0,0.00022021,2]
[393183889,1762301438715,-10030.0,0.00022036,2]
[393183890,1762301438726,-5708.62483,0.00022039,2]
[393183891,1762301438736,-344.48052907,0.00022052,2]
[393183892,1762301438747,-29568.1334252,0.00022064,2]
[393183893,1762301438757,-150.0,0.00022073,2]
[393183894,1762301438768,-150.0,0.00022073,2]
[393183895,1762301438778,-2824.5452604,0.00022087,2]
[393183896,1762301438789,-489.5341435,0.000221,2]
[393183897,1762301438799,-500.0,0.00022104,2]
[393183898,1762301438810,-237.86907179,0.0002211,2]
[393183899,1762301438820,-500.0,0.00022158,2]
[393183900,1762301438833,-500.0,0.00022192,2]
[393183901,1762301438847,-164.51,0.00022294,2]
[393183902,1762301438858,-223.9,0.00022397,2]
[393183903,1762301438868,-151.0,0.00022497,2]
[393183904,1762301438879,-500.0,0.00022499,2]
[393183905,1762301438890,-35139.148593,0.000225,2]
[393183906,1762301438901,-632.68205004,0.00022568,2]
[393183907,1762301438912,-1389.73286434,0.00022568,2]
[393183908,1762301438923,-590.04489551,0.00022568,2]
[393183909,1762301438934,-1500.0,0.00022568,2]
[393183910,1762301438945,-1500.0,0.00022568,2]
[393183911,1762301438956,-1500.0,0.00022568,2]
[393183912,1762301438966,-1500.0,0.00022568,2]
[393183913,1762301438977,-250.0,0.00022621,2]
[393183914,1762301438987,-250.0,0.00022621,2]
[393183915,1762301438998,-500.0,0.00022709,2]
[393183916,1762301439008,-438.92674076,0.00022709,2]
[393183917,1762301439019,-517.65922778,0.0002271,2]
[393183918,1762301439029,-1600.0,0.00022893,2]
[393183919,1762301439039,-500.0,0.00022899,2]
[393183920,1762301439051,-19197.29561683,0.000229,2]
[393183921,1762301439060,-435.40327286,0.00023,2]
[393183922,1762301439071,-997.4123682,0.00023,2]
[393183923,1762301439082,-500.0,0.00023074,2]
[393183924,1762301439094,-2559.55819196,0.000231,2]
[393183925,1762301439104,-164.51,0.00023113,2]
[393183926,1762301439113,-2000.0,0.00023116,2]
[393183927,1762301439123,-1949.20773238,0.00023116,2]
[393183928,1762301439133,-2000.0,0.00023116,2]
[393183929,1762301439143,-2000.0,0.00023116,2]
[393183930,1762301439153,-350.0,0.00023168,2]
[393183931,1762301439162,-253.80849945,0.00023168,2]
[393183932,1762301439172,-500.0,0.00023199,2]
[393183933,1762301439183,-500.0,0.00023199,2]
[393183934,1762301439195,-51643.53153563,0.000232,2]
[393183935,1762301439206,-9172.31614427,0.00023263,2]
[393183936,1762301439215,-663.80006129,0.00023383,2]
[393183937,1762301439225,-200.0,0.000235,2]
[393183938,1762301439235,-500.0,0.00023508,2]
[393183939,1762301439244,-500.0,0.00023508,2]
[393183940,1762301439255,-500.0,0.00023508,2]
[393183941,1762301439267,-161.1596466,0.00023508,2]
[393183942,1762301439276,-500.0,0.00023508,2]
[393183943,1762301439286,-500.0,0.00023508,2]
[393183944,1762301439296,-500.0,0.00023508,2]
[393183945,1762301439306,-810.03,0.00023508,2]
[393183946,1762301439316,-327.64,0.00023557,2]
[393183947,1762301439326,-223.9,0.00023576,2]
[393183948,1762301439338,-542.0,0.00023589,2]
[393183949,1762301439347,-587.0,0.00023643,2]
[393183950,1762301439357,-425.66393492,0.00023661,2]
[393183951,1762301439366,-2500.0,0.00023664,2]
[393183952,1762301439376,-274.03961248,0.00023664,2]
[393183953,1762301439385,-195.78948399,0.00023664,2]
[393183954,1762301439395,-531.31721806,0.00023716,2]
[393183955,1762301439404,-810.03,0.00023782,2]
[393183956,1762301439414,-1000.0,0.00023803,2]
[393183957,1762301439423,-300.0,0.00023832,2]
[393183958,1762301439433,-2351.0,0.00023846,2]
[393183959,1762301439442,-7147.06076122,0.00023989,2]
[393183960,1762301439452,-500.0,0.00023999,2]
[393183961,1762301439461,-1010.37746812,0.00024,2]
[393183962,1762301439471,-772.97161209,0.00024,2]
[393183963,1762301439480,-3600.0,0.00024,2]
[393183964,1762301439490,-16043.28881846,0.00024,2]
[393183965,1762301439500,-2000.0,0.00024,2]
[393183966,1762301439509,-5708.62484,0.00024039,2]
[393183967,1762301439518,-10030.0,0.00024055,2]
[393183968,1762301439528,-1000.0,0.00024056,2]
[393183969,1762301439537,-1000.0,0.00024056,2]
[393183970,1762301439547,-1000.0,0.00024056,2]
[393183971,1762301439556,-912.69216128,0.00024056,2]
[393183972,1762301439566,-1000.0,0.00024056,2]
[393183973,1762301439577,-1000.0,0.00024056,2]
[393183974,1762301439587,-810.03,0.00024056,2]
[393183975,1762301439596,-8491.7816808,0.00024073,2]
[393183976,1762301439606,-29568.1334252,0.00024112,2]
[393183977,1762301439615,-464.993331,0.00024112,7]
[393183978,1762301439625,-151.0,0.00024112,7]
[393183979,1762301439634,-151.0,0.00024112,7]
[393183980,1762301439644,-151.0,0.00024112,7]
[393183981,1762301439654,-151.0,0.00024112,7]
[393183982,1762301439664,-151.0,0.00024112,7]
[393183983,1762301439674,-151.0,0.00024112,7]
[393183984,1762301439684,-477.65212186,0.0002414,2]
[393183985,1762301439693,-2824.5452604,0.00024158,2]
[393183986,1762301439702,-564.79627528,0.00024168,2]
[393183987,1762301439711,-500.0,0.00024168,2]
[393183988,1762301439720,-500.0,0.00024168,2]
[393183989,1762301439729,-500.0,0.00024168,2]
[393183990,1762301439739,-417.44325636,0.0002421,2]
[393183991,1762301439749,-3657.88863295,0.0002421,2]
[393183992,1762301439758,-151.0,0.0002421,7]
[393183993,1762301439767,-151.0,0.0002421,7]
[393183994,1762301439778,-151.0,0.0002421,7]
[393183995,1762301439787,-3000.0,0.00024212,2]
[393183996,1762301439796,-810.03,0.0002433,2]
[393183997,1762301439806,-502.80687034,0.00024341,2]
[393183998,1762301439816,-1014.70956381,0.00024604,2]
[393183999,1762301439825,-1500.0,0.00024604,2]
[393184000,1762301439835,-1500.0,0.00024604,2]
[393184001,1762301439844,-788.26297983,0.00024604,2]
[393184002,1762301439853,-1299.13836372,0.00024604,2]
[393184003,1762301439862,-810.03,0.00024604,2]
[393184004,1762301439872,-591.20477657,0.0002465,2]
[393184005,1762301439881,-500.0,0.00024657,2]
[393184006,1762301439891,-500.0,0.00024657,2]
[393184007,1762301439900,-356.47,0.00024658,2]
[393184008,1762301439909,-1000.0,0.00024658,2]
[393184009,1762301439919,-196.0,0.00024702,2]
[393184010,1762301439928,-500.0,0.00024716,2]
[393184011,1762301439937,-1010.91373143,0.00024716,2]
[393184012,1762301439947,-1000.0,0.00024716,2]
[393184013,1762301439958,-223.9,0.00024755,2]
[393184014,1762301439967,-3500.0,0.0002476,2]
[393184016,1762301439977,-500.0,0.00024773,2]
[393184017,1762301439986,-500.0,0.00024773,2]
[393184018,1762301439995,-160.17732397,0.00024773,2]
[393184019,1762301440004,-500.0,0.00024773,2]
[393184020,1762301440013,-500.0,0.00024773,2]
[393184021,1762301440022,-500.0,0.00024773,2]
[393184022,1762301440032,-500.0,0.00024773,2]
[393184023,1762301440041,-500.0,0.00024773,2]
[393184024,1762301440050,-516.00653523,0.00024773,2]
[393184025,1762301440059,-500.0,0.00024773,2]
[393184026,1762301440068,-500.0,0.00024799,2]
[393184027,1762301440078,-500.0,0.00024799,2]
[393184028,1762301440088,-500.0,0.00024799,2]
[393184029,1762301440097,-151.0,0.000248,7]
[393184030,1762301440106,-464.993331,0.000248,7]
[393184031,1762301440115,-208133.042723,0.000248,3]
[393184032,1762301440124,-151.0,0.000248,7]
[393184033,1762301440133,-222.439029,0.000248,7]
[393184034,1762301440143,-163.166422,0.000248,7]
[393184035,1762301440416,-151.0,0.000248,7]
[393184036,1762301440426,-151.0,0.000248,7]
[393184037,1762301440436,-151.0,0.000248,7]
[393184038,1762301440445,-275.53584296,0.00024832,2]
[393184039,1762301440454,-211.36154485,0.00024873,2]
[393184040,1762301440463,-561.51407655,0.00024873,2]
[393184041,1762301440472,-500.0,0.00024873,2]
[393184042,1762301440483,-500.0,0.00024873,2]
[393184043,1762301440492,-150.0,0.00024873,2]
[393184044,1762301440501,-500.0,0.00024873,2]
[393184045,1762301440511,-500.0,0.00024873,2]
[393184046,1762301440520,-500.0,0.00024873,2]
[393184048,1762301440530,-500.0,0.00024873,2]
[393184050,1762301440539,-500.0,0.00024873,2]
[393184052,1762301440548,-500.0,0.00024873,2]
[393184054,1762301440557,-568.57012938,0.00024873,2]
[393184056,1762301440567,-810.07,0.00024878,2]
[393184058,1762301440576,-500.0,0.00024889,2]
[393184061,1762301440587,-29733.2918176,0.0002489,3]
[393184063,1762301440596,-151.0,0.00024897,7]
[393184065,1762301440605,-500.0,0.00024899,2]
[393184067,1762301440615,-500.0,0.00024899,2]
[393184069,1762301440624,-151.000001,0.000249,7]
[393184071,1762301440634,-99595.8814616,0.000249,3]
[393184073,1762301440643,-500.0,0.00024932,2]
[393184075,1762301440652,-14866.6459088,0.0002498,3]
[393184077,1762301440662,-12449.4851827,0.0002498,3]
[393184079,1762301440671,-14866.6459088,0.0002499,3]
[393184081,1762301440680,-24898.9703654,0.0002499,3]
[393184083,1762301440690,-422.82762228,0.0002499,2]
[393184085,1762301440699,-167.46,0.0002499,2]
[393184087,1762301440708,-500.0,0.00024998,2]
[393184089,1762301440717,-500.0,0.00024999,2]
[393184091,1762301440726,-601.31649127,0.00025,2]
[393184093,1762301440736,-204.97760912,0.00025,2]
[393184095,1762301440746,-1762.93893304,0.00025,2]
[393184097,1762301440755,-15335.64574352,0.00025,2]
[393184099,1762301440765,-360.0,0.00025,2]
[393184101,1762301440775,-3780.10760956,0.00025,2]
[393184103,1762301440785,-3006.14153703,0.00025,2]
[393184105,1762301440795,-12042.26237812,0.00025,2]
[393184107,1762301440805,-1051.05253797,0.00025,2]
[393184109,1762301440816,-165.20270292,0.00025,2]
[393184111,1762301440826,-3108.99367,0.00025,2]
[393184113,1762301440839,-151.0,0.00025,7]
[393184115,1762301440849,-151.0,0.00025,7]
[393184117,1762301440859,-327.64,0.00025027,2]
[393184119,1762301440869,-9172.31614427,0.00025125,2]
[393184121,1762301440879,-167.46,0.00025131,2]
[393184123,1762301440889,-14866.6459088,0.00025142,3]
[393184125,1762301440899,-706.9778576,0.00025152,2]
[393184127,1762301440909,-2000.0,0.00025152,2]
[393184129,1762301440919,-300.0,0.00025202,2]
[393184131,1762301440929,-500.0,0.00025237,2]
[393184133,1762301440938,-500.0,0.00025237,2]
[393184135,1762301440947,-12449.4851827,0.00025254,3]
[393184137,1762301440956,-1500.0,0.00025264,2]
[393184139,1762301440966,-4000.0,0.00025308,2]
[393184141,1762301440977,-14866.6459088,0.00025311,3]
[393184143,1762301440986,-167.46,0.00025311,2]
[393184145,1762301440996,-1000.0,0.00025321,2]
[393184147,1762301441006,-1000.0,0.00025321,2]
[393184149,1762301441015,-1000.0,0.00025321,2]
[393184151,1762301441025,-1000.0,0.00025321,2]
[393184153,1762301441035,-1000.0,0.00025321,2]
[393184155,1762301441044,-1001.89466476,0.00025321,2]
[393184157,1762301441054,-1000.0,0.00025321,2]
[393184158,1762301441063,-12449.4851827,0.000254,3]
[393184160,1762301441072,-464.993331,0.0002541,7]
[393184162,1762301441081,-151.0,0.0002541,7]
[393184164,1762301441092,-170.97892851,0.00025421,2]
[393184166,1762301441102,-1000.0,0.00025421,2]
[393184168,1762301441111,-150.0,0.00025421,2]
[393184170,1762301441120,-1000.0,0.00025421,2]
[393184172,1762301441129,-1000.0,0.00025421,2]
[393184174,1762301441139,-1009.8687602,0.00025421,2]
[393184176,1762301441148,-1000.0,0.00025421,2]
[393184178,1762301441157,-1000.0,0.00025421,2]
[393184180,1762301441166,-174.78,0.00025466,2]
[393184182,1762301441176,-425.66393492,0.00025474,2]
[393184184,1762301441185,-2500.0,0.00025699,2]
[393184186,1762301441194,-823.0,0.00025746,2]
[393184187,1762301441203,-14866.6459088,0.00025797,3]
[393184189,1762301441212,-3995.0,0.00025807,2]
[393184191,1762301441222,-755.05357836,0.00025812,2]
[393184193,1762301441231,-663.80006129,0.00025847,2]
[393184195,1762301441240,-167.46,0.00025849,2]
[393184197,1762301441249,-1180.85222632,0.00025856,2]
[393184199,1762301441261,-12449.4851827,0.00025858,3]
[393184201,1762301441271,-14866.6459088,0.00025859,3]
[393184203,1762301441280,-324.80016676,0.00025868,2]
[393184205,1762301441289,-834.36236611,0.00025868,2]
[393184207,1762301441298,-1500.0,0.00025868,2]
[393184209,1762301441308,-1520.07954726,0.00025868,2]
[393184211,1762301441317,-1500.0,0.00025868,2]
[393184213,1762301441327,-1500.0,0.00025868,2]
[393184215,1762301441340,-12449.4851827,0.00025869,3]
[393184217,1762301441349,-167.46,0.00025869,2]
[393184219,1762301441358,-500.0,0.00025878,2]
[393184221,1762301441368,-20082.02777138,0.00025879,2]
[393184223,1762301441377,-223.9,0.00025933,2]
[393184225,1762301441387,-12449.4851827,0.00025958,3]
[393184227,1762301441396,-167.46,0.00025958,2]
[393184229,1762301441406,-14866.6459088,0.00025959,3]
[393184231,1762301441415,-294.859152,0.00025959,7]
[393184233,1762301441425,-151.0,0.00025959,7]
[393184235,1762301441433,-1500.0,0.00025968,2]
[393184237,1762301441442,-150.0,0.00025968,2]
[393184239,1762301441451,-1500.0,0.00025968,2]
[393184241,1762301441460,-523.90862706,0.00025968,2]
[393184242,1762301441469,-1500.0,0.00025968,2]
[393184244,1762301441479,-641.98943615,0.00025968,2]
[393184246,1762301441488,-593.19391381,0.0002599,2]
[393184248,1762301441497,-4468.2095011,0.00026,2]
[393184250,1762301441506,-4138.65,0.00026,2]
[393184252,1762301441515,-213.77330891,0.00026,2]
[393184255,1762301441527,-160.91066148,0.00026,2]
[393184257,1762301441536,-12449.4851827,0.00026004,3]
[393184259,1762301441545,-7147.06076122,0.00026014,2]
[393184260,1762301441554,-5708.62483,0.00026039,2]
[393184261,1762301441563,-167.46,0.00026043,2]
[393184262,1762301441573,-500.0,0.00026046,2]
[393184263,1762301441582,-500.0,0.00026046,2]
[393184264,1762301441593,-12449.4851827,0.00026054,3]
[393184265,1762301441602,-10030.0,0.00026074,2]
[393184266,1762301441611,-3292.0,0.00026092,2]
[393184267,1762301441620,-154.66082908,0.00026105,2]
[393184268,1762301441629,-500.0,0.00026118,2]
[393184269,1762301441638,-24898.9703654,0.00026149,3]
[393184270,1762301441647,-167.46,0.00026149,2]
[393184271,1762301441656,-151.0,0.00026156,7]
[393184272,1762301441665,-29568.1334252,0.00026159,2]
[393184273,1762301441673,-151.0,0.00026167,7]
[393184274,1762301441682,-12449.4851827,0.00026175,3]
[393184275,1762301441691,-464.993331,0.00026177,7]
[393184276,1762301441700,-8491.7816808,0.00026177,2]
[393184278,1762301441709,-2824.5452604,0.00026228,2]
[393184280,1762301441719,-167.46,0.00026237,2]
[393184282,1762301441727,-2651.16713156,0.00026247,2]
[393184284,1762301441736,-500.0,0.0002638,2]
[393184286,1762301441745,-500.0,0.0002638,2]
[393184287,1762301441754,-12449.4851827,0.0002639,3]
[393184290,1762301441764,-167.46,0.00026397,2]
[393184292,1762301441774,-500.0,0.00026399,2]
[393184294,1762301441783,-27142.89166437,0.000264,2]
[393184296,1762301441792,-12449.4851827,0.00026406,3]
[393184298,1762301441801,-2000.0,0.00026416,2]
[393184299,1762301441810,-2000.0,0.00026416,2]
[393184302,1762301441820,-364.43774244,0.00026416,2]
[393184304,1762301441830,-1000.0,0.00026448,2]
[393184306,1762301441842,-151.0,0.00026496,7]
[393184308,1762301441851,-12449.4851827,0.00026497,3]
[393184309,1762301441860,-2000.0,0.00026516,2]
[393184311,1762301441869,-215.89716196,0.00026516,2]
[393184313,1762301441879,-2000.0,0.00026516,2]
[393184315,1762301441888,-1018.75170071,0.00026516,2]
[393184317,1762301441897,-417.11,0.00026676,2]
[393184319,1762301441907,-218.43,0.00026722,2]
[393184321,1762301441917,-218.43,0.00026947,2]
[393184323,1762301441927,-1014.0387098,0.00026964,2]
[393184325,1762301441936,-501.18214903,0.00026964,2]
[393184327,1762301441946,-1000.0,0.00026967,2]
[393184329,1762301441955,-9172.31614427,0.00026988,2]
[393184331,1762301441965,-250.0,0.00027,2]
[393184333,1762301441974,-1020.74370514,0.00027,2]
[393184335,1762301441983,-530.0,0.00027,2]
[393184337,1762301441993,-3000.000001,0.00027,10]
[393184339,1762301442002,-500.0,0.00027041,2]
[393184341,1762301442012,-275.5358429,0.00027054,2]
[393184343,1762301442022,-167.46,0.00027054,2]
[393184345,1762301442032,-500.0,0.00027064,2]
[393184347,1762301442041,-2500.0,0.00027064,2]
[393184350,1762301442050,-223.9,0.00027112,2]
[393184351,1762301442060,-218.43,0.00027172,2]
[393184353,1762301442070,-425.66393492,0.00027287,2]
[393184355,1762301442079,-160.0,0.00027317,2]
[393184358,1762301442089,-12449.4851827,0.00027352,3]
[393184359,1762301442098,-500.0,0.00027367,2]
[393184361,1762301442107,-12449.4851827,0.00027377,3]
[393184363,1762301442117,-167.46,0.00027377,2]
[393184365,1762301442126,-12449.4851827,0.0002738,3]
[393184367,1762301442136,-500.0,0.00027387,2]
[393184369,1762301442145,-500.0,0.00027387,2]
[393184371,1762301442154,-37348.4555481,0.00027387,3]
[393184373,1762301442163,-167.46,0.00027387,2]
[393184375,1762301442172,-4057.37263269,0.0002739,2]
[393184377,1762301442181,-8014.94766008,0.0002739,2]
[393184379,1762301442191,-3199.31947073,0.0002739,2]
[393184381,1762301442201,-464.993331,0.00027397,7]
[393184383,1762301442210,-464.993323,0.00027397,7]
[393184385,1762301442219,-151.0,0.00027397,7]
[393184387,1762301442229,-33081.82,0.00027397,2]
[393184389,1762301442239,-356.47,0.00027397,2]
[393184391,1762301442248,-151.0,0.00027397,31]
[393184393,1762301442260,-151.0,0.00027397,31]
[393184395,1762301442269,-300.0,0.00027397,2]
[393184397,1762301442279,-151.0,0.00027397,31]
[393184399,1762301442288,-151.0,0.00027397,31]
[393184401,1762301442297,-151.0,0.00027397,31]
[393184403,1762301442307,-151.0,0.00027397,31]
[393184405,1762301442315,-301.999999,0.00027397,31]
[393184407,1762301442325,-301.903496,0.00027397,31]
[393184409,1762301442339,-151.0,0.00027397,31]
[393184411,1762301442348,-151.0,0.00027397,31]
[393184413,1762301442357,-151.0,0.00027397,31]
[393184415,1762301442367,-151.0,0.00027397,31]
[393184417,1762301442376,-151.0,0.00027397,31]
[393184419,1762301442386,-151.0,0.00027397,31]
[393184421,1762301442395,-151.0,0.00027397,31]
[393184423,1762301442405,-151.0,0.00027397,31]
[393184425,1762301442418,-151.0,0.00027397,31]
[393184427,1762301442431,-151.0,0.00027397,31]
[393184429,1762301442441,-151.0,0.00027397,31]
[393184431,1762301442450,-151.0,0.00027397,31]
[393184433,1762301442459,-151.0,0.00027397,31]
[393184435,1762301442468,-151.0,0.00027397,31]
[393184437,1762301442478,-151.0,0.00027397,31]